bitfinex/quotes_BTCUSD_20250922
["timestamp","ask_amount","ask_price","bid_price","bid_amount"]
[1758554335377,1.80940288,113020.0,113010.0,0.0002]
[1758554335593,1.92800288,113020.0,113010.0,0.0002]
[1758554337069,1.92481288,113020.0,113010.0,0.0002]
[1758554337755,1.92800288,113020.0,113010.0,0.0002]
[1758554338680,1.54592288,113020.0,113010.0,0.0002]
[1758554338919,1.92481288,113020.0,113010.0,0.00227]
[1758554339105,1.80411288,113020.0,113010.0,0.00527]
[1758554339287,1.89979288,113020.0,113010.0,0.02976]
[1758554339496,1.90187288,113020.0,113010.0,0.02676]
[1758554339696,1.92798288,113020.0,113010.0,0.0002]
[1758554340108,1.90506288,113020.0,113010.0,0.0002]
[1758554340247,1.92798288,113020.0,113010.0,0.0002]
[1758554342126,1.06672803,113020.0,113010.0,0.0002]
[1758554342335,2.78923773,113020.0,113010.0,0.0002]
[1758554344586,1.83353013,113020.0,113010.0,0.0002]
[1758554345559,0.65645803,113020.0,113010.0,0.00527]
[1758554345763,1.4219549,113020.0,113010.0,0.02976]
[1758554346099,1.41371833,113020.0,113010.0,0.02976]
[1758554346695,1.80743607,113020.0,113010.0,0.02676]
[1758554346916,1.80743607,113020.0,113010.0,0.0002]
[1758554347124,1.83354607,113020.0,113010.0,0.0002]
[1758554347332,1.82530938,113020.0,113010.0,0.0002]
[1758554347574,1.83354615,113020.0,113010.0,0.0002]
[1758554348343,1.82530938,113020.0,113010.0,0.0002]
[1758554349194,1.83354663,113020.0,113010.0,0.0002]
[1758554349410,1.82530938,113020.0,113010.0,0.0002]
[1758554349571,1.83354652,113020.0,113010.0,0.0002]
[1758554350006,0.51697548,113010.0,113000.0,0.00024]
[1758554350221,0.20714305,113000.0,112990.0,0.00026452]
[1758554350439,1.71380482,113000.0,112990.0,0.00026452]
[1758554350864,1.7404191,113000.0,112990.0,0.00026452]
[1758554351520,1.7404191,113000.0,112990.0,0.00426452]
[1758554352202,1.7404191,113000.0,112990.0,0.00526452]
[1758554353422,1.4540191,113000.0,112990.0,0.00526452]
[1758554353737,1.8131791,113000.0,112990.0,0.00526452]
[1758554353855,1.8360991,113000.0,112990.0,0.00526452]
[1758554354519,1.4540191,113000.0,112990.0,0.00526452]
[1758554354936,1.8329091,113000.0,112990.0,0.00526452]
[1758554355596,1.8329091,113000.0,112990.0,0.00126452]
[1758554355772,1.4279091,113000.0,112990.0,0.00321452]
[1758554355985,1.8099891,113000.0,112990.0,0.02618452]
[1758554357521,1.4279091,113000.0,112990.0,0.02942452]
[1758554357726,1.8099891,113000.0,112990.0,0.02942452]
[1758554358061,1.8099891,113000.0,112990.0,0.02622452]
[1758554358392,1.49280899,113000.0,112990.0,0.02622452]
[1758554358611,1.76548014,113000.0,112990.0,0.02942452]
[1758554359401,1.76548014,113000.0,112990.0,0.02622452]
[1758554360448,1.79563204,113000.0,112990.0,0.02622452]
[1758554360850,1.79563204,113000.0,112990.0,0.00225452]
[1758554361094,1.81855204,113000.0,112990.0,0.00030452]
[1758554361958,1.82157204,113000.0,112990.0,1e-08]
[1758554362613,2.20497309,113000.0,112990.0,1e-08]
[1758554362816,1.82157204,113000.0,112990.0,1e-08]
[1758554364744,2.20497309,113000.0,112990.0,1e-08]
[1758554365054,1.82157204,113000.0,112990.0,1e-08]
[1758554365220,1.82157204,113000.0,112960.0,0.0002]
[1758554365221,0.34,112970.0,112960.0,0.0002]
[1758554365438,1.78086077,112970.0,112960.0,0.0002]
[1758554365630,1.80897077,112970.0,112960.0,0.0002]
[1758554366040,1.81591085,112970.0,112960.0,0.0002]
[1758554366257,0.6675098,112970.0,112960.0,0.0002]
[1758554366467,1.81655632,112970.0,112960.0,0.0002]
[1758554366875,1.43443632,112970.0,112960.0,0.0002]
[1758554367076,1.81655632,112970.0,112960.0,0.0042]
[1758554367317,1.04975422,112970.0,112960.0,1e-08]
[1758554367529,1.43443632,112970.0,112960.0,1e-08]
[1758554367747,0.51705382,112960.0,112950.0,0.0002]
[1758554367951,1.65604559,112960.0,112950.0,0.02461]
[1758554368153,1.65818559,112960.0,112950.0,0.02668]
[1758554369022,1.65818559,112960.0,112950.0,0.02768]
[1758554369436,1.68481161,112960.0,112950.0,0.03168]
[1758554369735,1.68481161,112960.0,112950.0,0.00727]
[1758554369906,1.68481161,112960.0,112930.0,0.00694008]
[1758554369907,0.51708517,112940.0,112930.0,0.00694008]
[1758554370110,1.75187694,112940.0,112930.0,0.00694008]
[1758554370311,1.75187694,112940.0,112930.0,0.00901008]
[1758554370523,1.75881702,112940.0,112930.0,0.01207008]
[1758554370949,1.37609702,112940.0,112930.0,0.01207008]
[1758554371108,1.75873702,112940.0,112930.0,0.01207008]
[1758554371506,1.37609702,112940.0,112930.0,0.01207008]
[1758554371713,1.75877702,112940.0,112930.0,0.03648008]
[1758554371971,1.75877702,112940.0,112930.0,0.04048008]
[1758554372173,1.75977702,112940.0,112930.0,0.04048008]
[1758554373199,1.76191702,112940.0,112930.0,0.04048008]
[1758554373738,1.66615702,112940.0,112930.0,0.04048008]
[1758554373940,1.76187702,112940.0,112930.0,0.04048008]
[1758554375200,1.75973702,112940.0,112930.0,0.04048008]
[1758554375758,1.79202892,112940.0,112930.0,0.01301008]
[1758554375961,1.81925792,112940.0,112930.0,0.01094008]
[1758554376150,1.82540483,112940.0,112930.0,0.01094008]
[1758554377007,1.82440483,112940.0,112930.0,0.01094008]
[1758554377182,1.82440483,112940.0,112930.0,0.00694008]
[1758554377411,1.82740483,112940.0,112930.0,0.00694008]
[1758554377872,1.82840483,112940.0,112930.0,0.00694008]
[1758554378205,1.82740483,112940.0,112930.0,0.00694008]
[1758554378413,1.44476483,112940.0,112930.0,0.00694008]
[1758554378637,1.83627547,112940.0,112930.0,0.00694008]
[1758554380326,1.85264869,112940.0,112930.0,0.00694008]
[1758554381582,1.85264714,112940.0,112930.0,0.00694008]
[1758554381898,1.85260714,112940.0,112930.0,0.00694008]
[1758554382362,1.75684714,112940.0,112930.0,0.00694008]
[1758554382571,1.85260714,112940.0,112930.0,0.00694008]
[1758554385895,1.47032714,112940.0,112930.0,0.00694008]
[1758554386210,1.83831363,112940.0,112930.0,0.00694008]
[1758554386645,1.82193792,112940.0,112930.0,0.00694008]
[1758554386855,1.85264559,112940.0,112930.0,0.00694008]
[1758554387062,1.84650406,112940.0,112930.0,0.00694008]
[1758554387215,1.85264596,112940.0,112930.0,0.00694008]
[1758554387368,1.83831818,112940.0,112930.0,0.00694008]
[1758554387575,1.8526509,112940.0,112930.0,0.00694008]
[1758554388035,1.82193792,112940.0,112930.0,0.00694008]
[1758554388682,1.85265522,112940.0,112930.0,0.00694008]
[1758554388923,0.54725275,112930.0,112920.0,0.0002]
[1758554389146,1.71980182,112930.0,112920.0,0.0002]
[1758554389368,1.74601182,112930.0,112920.0,0.0002]
[1758554389586,1.77264415,112930.0,112920.0,0.0002]
[1758554390257,1.77278464,112930.0,112920.0,0.0002]
[1758554390474,1.77279115,112930.0,112920.0,0.0002]
[1758554390690,1.77379115,112930.0,112920.0,0.0002]
[1758554390903,1.48723115,112930.0,112920.0,0.0002]
[1758554391257,2.25263115,112930.0,112920.0,0.0002]
[1758554391472,2.25463115,112930.0,112920.0,0.0002]
[1758554391829,2.25963115,112930.0,112920.0,0.0012]
[1758554392805,1.49423115,112930.0,112920.0,0.0012]
[1758554393017,2.25663115,112930.0,112920.0,0.0012]
[1758554393450,2.25863115,112930.0,112920.0,0.0012]
[1758554393646,2.25863115,112930.0,112920.0,1e-08]
[1758554394349,2.16287115,112930.0,112920.0,1e-08]
[1758554394561,2.25866646,112930.0,112920.0,1e-08]
[1758554394766,1.49326646,112930.0,112920.0,1e-08]
[1758554395011,2.25866646,112930.0,112920.0,0.02648001]
[1758554395228,1.49326646,112930.0,112920.0,1e-08]
[1758554395426,1.87558646,112930.0,112920.0,1e-08]
[1758554395676,1.96878646,112930.0,112920.0,1e-08]
[1758554395874,1.49326646,112930.0,112920.0,1e-08]
[1758554396290,1.87558646,112930.0,112920.0,1e-08]
[1758554396869,0.69705436,112930.0,112920.0,0.02954001]
[1758554397124,0.72079384,112930.0,112920.0,0.02954001]
[1758554397356,1.00735384,112930.0,112920.0,0.02954001]
[1758554397581,0.24163279,112930.0,112920.0,0.02954001]
[1758554397798,0.91159384,112930.0,112920.0,0.02954001]
[1758554398024,0.51178235,112930.0,112920.0,0.02954001]
[1758554398220,0.8951834,112930.0,112920.0,0.20665655]
[1758554398453,1.2351834,112930.0,112920.0,0.02954001]
[1758554398678,1.2301834,112930.0,112920.0,0.02954]
[1758554399178,0.84878235,112930.0,112920.0,0.03054]
[1758554399359,1.2321834,112930.0,112920.0,0.03054]
[1758554399520,0.84678235,112930.0,112920.0,0.03054]
[1758554399959,0.84778235,112930.0,112920.0,0.03054]
[1758554400493,0.0441215,112930.0,112920.0,0.60331992]
[1758554400635,0.0441215,112930.0,112920.0,0.59105759]
[1758554401210,0.0441215,112930.0,112920.0,0.67632726]
[1758554401409,0.0431215,112930.0,112920.0,0.67632726]
[1758554401581,0.0431215,112930.0,112920.0,0.67732726]
[1758554401798,0.01648917,112930.0,112920.0,0.67732726]
[1758554401996,0.01448917,112930.0,112920.0,0.67632726]
[1758554402551,0.01448917,112930.0,112920.0,0.67832726]
[1758554402876,0.01448917,112930.0,112920.0,0.67732726]
[1758554403326,0.00628395,112930.0,112920.0,0.67932726]
[1758554403527,0.00628395,112930.0,112920.0,0.96584726]
[1758554403707,0.00628395,112930.0,112920.0,0.58044621]
[1758554404100,0.00728395,112930.0,112920.0,0.59955896]
[1758554404300,0.00728395,112930.0,112920.0,0.98296001]
[1758554404702,0.00728395,112930.0,112920.0,0.98292001]
[1758554404883,0.00728395,112930.0,112920.0,1.04911247]
[1758554405084,0.00114049,112930.0,112920.0,1.04911247]
[1758554406058,0.00114049,112930.0,112920.0,1.43251352]
[1758554406264,0.00114049,112930.0,112920.0,1.14603352]
[1758554406447,0.00114049,112930.0,112920.0,1.52827352]
[1758554406636,0.00114049,112930.0,112920.0,0.95443016]
[1758554406854,0.00114049,112930.0,112920.0,1.33667016]
[1758554407053,0.00114049,112930.0,112920.0,1.33467016]
[1758554407386,0.00114049,112930.0,112920.0,0.95243016]
[1758554407710,0.00314049,112930.0,112920.0,1.35267016]
[1758554408431,0.00314049,112930.0,112920.0,0.77743142]
[1758554408632,0.00314049,112930.0,112920.0,0.97043016]
[1758554408834,0.29073986,112930.0,112920.0,0.38211867]
[1758554409039,0.00314049,112930.0,112920.0,0.66855867]
[1758554409489,0.29073986,112930.0,112920.0,0.66855867]
[1758554409692,0.29073986,112930.0,112920.0,0.38211867]
[1758554409892,0.29073986,112930.0,112920.0,0.66855867]
[1758554410358,0.00314049,112930.0,112920.0,0.66855867]
[1758554411598,0.00314049,112930.0,112920.0,0.95615804]
[1758554412348,0.00314049,112930.0,112920.0,0.66971804]
[1758554412548,0.00314049,112930.0,112920.0,0.66855867]
[1758554412549,0.29073986,112930.0,112920.0,0.66855867]
[1758554412769,0.46784071,112930.0,112920.0,0.38211867]
[1758554412947,0.46982071,112930.0,112920.0,0.05354]
[1758554413155,0.49658071,112930.0,112920.0,0.48962654]
[1758554413312,0.46982071,112930.0,112920.0,0.02906]
[1758554413489,0.49658071,112930.0,112920.0,0.04947]
[1758554413707,0.46982071,112930.0,112920.0,0.05246]
[1758554413925,0.46882071,112930.0,112920.0,0.04646]
[1758554414127,0.46682071,112930.0,112920.0,0.02846]
[1758554414324,0.46682071,112930.0,112920.0,0.03146]
[1758554414529,0.46682071,112930.0,112920.0,0.02547]
[1758554414919,0.49492071,112930.0,112920.0,0.00207]
[1758554415209,0.17711654,112920.0,112910.0,0.0002]
[1758554415455,0.75231528,112920.0,112910.0,0.0002]
[1758554415650,0.79594401,112920.0,112910.0,0.0002]
[1758554416108,0.46368134,112930.0,112910.0,0.20714222]
[1758554416343,0.51724134,112930.0,112920.0,0.03067]
[1758554416589,0.51724134,112930.0,112920.0,0.03281]
[1758554416842,0.17711654,112920.0,112910.0,0.0002]
[1758554417094,0.17711654,112920.0,112910.0,0.0042]
[1758554417341,0.17711654,112920.0,112910.0,0.03401]
[1758554417508,0.78336528,112920.0,112910.0,0.01534]
[1758554417821,0.20816654,112920.0,112910.0,0.0132]
[1758554418018,0.78336528,112920.0,112910.0,0.0132]
[1758554418475,0.78336528,112920.0,112910.0,0.0092]
[1758554418702,1.12336528,112920.0,112910.0,0.0092]
[1758554418961,1.13646397,112920.0,112910.0,0.0092]
[1758554419225,0.56126523,112920.0,112910.0,0.0092]
[1758554419463,1.13646397,112920.0,112910.0,0.0092]
[1758554419694,1.13646397,112920.0,112910.0,0.01434]
[1758554419926,1.13327397,112920.0,112910.0,0.01434]
[1758554420633,0.51811654,112920.0,112910.0,0.21914222]
[1758554420855,0.001,112920.0,112910.0,0.21914222]
[1758554421092,0.28859937,112920.0,112910.0,0.21914222]
[1758554421583,0.46571591,112920.0,112910.0,0.21914222]
[1758554421813,0.17811654,112920.0,112910.0,0.21914222]
[1758554422046,0.46571591,112920.0,112910.0,0.21914222]
[1758554422276,0.28859937,112920.0,112910.0,0.21914222]
[1758554422735,0.001,112920.0,112910.0,0.59201126]
[1758554422948,0.001,112920.0,112910.0,0.30441189]
[1758554423862,0.001,112920.0,112910.0,0.59201126]
[1758554424303,0.001,112920.0,112910.0,0.59205126]
[1758554425942,0.46470022,112930.0,112910.0,0.59165189]
[1758554426141,0.28954937,112920.0,112910.0,0.50638222]
[1758554426420,0.28759937,112920.0,112910.0,0.50638222]
[1758554426763,0.46470022,112930.0,112920.0,0.17711654]
[1758554426972,0.46470022,112930.0,112920.0,0.17925654]
[1758554427220,0.21404029,112940.0,112930.0,0.17710085]
[1758554427371,0.18594029,112940.0,112930.0,0.20707001]
[1758554427575,0.51249383,112950.0,112930.0,0.49427001]
[1758554427878,0.46468454,112940.0,112930.0,0.49427001]
[1758554428092,0.51707262,112950.0,112940.0,0.17708517]
[1758554428296,0.34,112950.0,112940.0,0.29185484]
[1758554428494,0.46465371,112960.0,112940.0,0.29185484]
[1758554428773,0.17705382,112960.0,112950.0,0.1831567]
[1758554428982,0.46465319,112960.0,112950.0,0.49380949]
[1758554429561,0.48011452,112960.0,112940.0,0.28672484]
[1758554429790,0.48011452,112960.0,112940.0,0.08526967]
[1758554429791,0.49079886,112950.0,112940.0,0.08526967]
[1758554429985,0.49774886,112950.0,112940.0,0.08526967]
[1758554430183,0.46966886,112950.0,112940.0,0.26434484]
[1758554430421,0.46661886,112950.0,112940.0,0.28871484]
[1758554430594,0.48950886,112950.0,112940.0,0.08725967]
[1758554430800,0.49274886,112950.0,112940.0,0.08526967]
[1758554431211,0.49274886,112950.0,112940.0,0.08726967]
[1758554431411,0.17705382,112960.0,112940.0,0.26948484]
[1758554431609,0.17705382,112960.0,112950.0,0.22228538]
[1758554431813,0.46465319,112960.0,112950.0,0.49712844]
[1758554432238,0.28759937,112960.0,112950.0,0.49712844]
[1758554432466,0.46465319,112960.0,112950.0,0.49712844]
[1758554433172,0.18589005,112970.0,112950.0,0.78472781]
[1758554433407,0.52589005,112970.0,112960.0,0.00973796]
[1758554433602,0.8032957,112980.0,112960.0,0.51185857]
[1758554433743,0.8000557,112980.0,112960.0,0.20655382]
[1758554433939,0.17703815,112970.0,112960.0,0.20255382]
[1758554434141,0.46463752,112970.0,112960.0,0.49279382]
[1758554434338,0.28759937,112970.0,112960.0,0.49279382]
[1758554434531,0.29559937,112970.0,112960.0,0.49279382]
[1758554434734,0.28759937,112970.0,112960.0,0.49279382]
[1758554434960,0.81554713,112980.0,112970.0,0.17703815]
[1758554435168,0.47749713,112980.0,112970.0,0.17902815]
[1758554435376,0.47549713,112980.0,112970.0,0.17902815]
[1758554435589,0.17703815,112970.0,112960.0,0.26232349]
[1758554435813,0.46982752,112970.0,112960.0,0.37530967]
[1758554436018,0.17705382,112960.0,112950.0,0.24223815]
[1758554436225,0.28759937,112960.0,112950.0,0.64390782]
[1758554436396,0.46660319,112960.0,112950.0,0.35386782]
[1758554436556,0.46660319,112960.0,112950.0,0.64195782]
[1758554436557,0.49273319,112960.0,112950.0,0.64195782]
[1758554436958,0.49273319,112960.0,112950.0,0.5524169]
[1758554437242,0.02484,112960.0,112950.0,0.5584069]
[1758554437439,0.28954937,112960.0,112950.0,0.2926969]
[1758554437691,0.46660319,112960.0,112950.0,0.5827769]
[1758554437894,0.28954937,112960.0,112950.0,0.5827769]
[1758554438142,0.28954937,112960.0,112950.0,0.5847769]
[1758554438313,0.46660319,112960.0,112950.0,0.5847769]
[1758554438538,0.46660319,112960.0,112950.0,0.2946969]
[1758554438719,0.49273319,112960.0,112950.0,0.5582169]
[1758554438923,0.49273319,112960.0,112950.0,0.5581769]
[1758554439268,0.48949319,112960.0,112950.0,0.5845369]
[1758554439448,0.20189382,112960.0,112950.0,0.5845369]
[1758554439660,0.28774038,112970.0,112960.0,0.17705382]
[1758554439861,0.28774038,112970.0,112960.0,0.20341382]
[1758554440229,0.46672853,112970.0,112960.0,0.02636]
[1758554440421,0.7575679,112970.0,112950.0,0.09126967]
[1758554440622,0.77838256,112960.0,112950.0,0.37534967]
[1758554440822,0.49273319,112960.0,112950.0,0.55241916]
[1758554441028,0.49273319,112960.0,112950.0,0.08526967]
[1758554441229,0.49273319,112960.0,112950.0,0.37538967]
[1758554441694,0.49273319,112960.0,112950.0,0.55245916]
[1758554441920,0.49273319,112960.0,112950.0,0.08925967]
[1758554442045,0.48949319,112960.0,112950.0,0.26632916]
[1758554442241,0.49273319,112960.0,112950.0,0.55632916]
[1758554442452,0.49273319,112960.0,112950.0,0.37726967]
[1758554442651,0.20513382,112960.0,112950.0,0.37726967]
[1758554443321,0.20513382,112960.0,112950.0,0.55833916]
[1758554443965,0.20513382,112960.0,112950.0,0.38122967]
[1758554444519,0.20513382,112960.0,112950.0,0.09126967]
[1758554444733,0.57964979,112960.0,112950.0,0.38102967]
[1758554444940,0.57964979,112960.0,112950.0,0.29576]
[1758554445549,0.57964979,112960.0,112950.0,0.006]
[1758554445785,0.57964979,112960.0,112950.0,0.29572]
[1758554446047,0.57964979,112960.0,112950.0,0.006]
[1758554446269,0.86936979,112960.0,112950.0,0.006]
[1758554447202,1.20936979,112960.0,112950.0,0.006]
[1758554448232,0.91964979,112960.0,112950.0,0.006]
[1758554448651,1.20928979,112960.0,112950.0,0.006]
[1758554448860,0.91964979,112960.0,112950.0,0.004]
[1758554449277,1.20924979,112960.0,112950.0,0.004]
[1758554449400,0.17706949,112950.0,112940.0,0.20145468]
[1758554449614,0.17706949,112950.0,112940.0,0.20658468]
[1758554451046,0.55353546,112950.0,112940.0,0.008]
[1758554451268,0.57966546,112950.0,112940.0,0.008]
[1758554451638,0.20514949,112950.0,112940.0,0.008]
[1758554451828,0.57966546,112950.0,112940.0,0.008]
[1758554451989,0.86902546,112950.0,112940.0,0.008]
[1758554452396,0.86902546,112950.0,112940.0,0.011]
[1758554452595,0.86902546,112950.0,112940.0,0.003]
[1758554453045,0.86902546,112950.0,112940.0,0.007]
[1758554453890,0.86902546,112950.0,112940.0,0.004]
[1758554454118,0.86902546,112950.0,112940.0,0.006]
[1758554454321,0.86882546,112950.0,112940.0,0.006]
[1758554455203,0.86866546,112950.0,112940.0,0.006]
[1758554455881,0.20514949,112950.0,112940.0,0.006]
[1758554456099,0.17706949,112950.0,112940.0,0.18507517]
[1758554456310,0.17706949,112950.0,112940.0,0.20944517]
[1758554457359,0.17706949,112950.0,112940.0,0.03236]
[1758554457563,0.17706949,112950.0,112940.0,0.22715368]
[1758554457786,0.17706949,112950.0,112940.0,0.20944517]
[1758554458474,0.17706949,112950.0,112940.0,0.21268517]
[1758554458878,0.17706949,112950.0,112940.0,0.0356]
[1758554459118,0.17706949,112950.0,112940.0,0.0495587]
[1758554459742,0.17909949,112950.0,112940.0,0.0495587]
[1758554459946,0.55361546,112950.0,112940.0,0.0495587]
[1758554461445,0.55361546,112950.0,112940.0,0.03236]
[1758554461575,0.55683546,112950.0,112940.0,0.006]
[1758554461777,0.57956546,112950.0,112940.0,0.006]
[1758554462401,0.86824546,112950.0,112940.0,0.006]
[1758554465155,1.58276143,112950.0,112940.0,0.006]
[1758554465361,1.6680311,112950.0,112940.0,0.006]
[1758554466132,1.698183,112950.0,112940.0,0.006]
[1758554466365,1.72480912,112950.0,112940.0,0.002]
[1758554466617,0.68709718,112950.0,112940.0,0.002]
[1758554466760,1.60331578,112950.0,112940.0,0.002]
[1758554466962,0.17711654,112920.0,112910.0,0.00024]
[1758554467317,0.99061514,112920.0,112910.0,0.00024]
[1758554467513,0.99277514,112920.0,112910.0,0.00024]
[1758554467721,1.01884514,112920.0,112910.0,0.00024]
[1758554468158,1.01884514,112920.0,112910.0,0.00070916]
[1758554468400,0.20218654,112920.0,112910.0,0.00280916]
[1758554468603,0.99261514,112920.0,112910.0,0.03160916]
[1758554469159,1.0048449,112920.0,112910.0,0.03160916]
[1758554469407,0.4775463,112920.0,112910.0,0.03360916]
[1758554469630,0.99261514,112920.0,112910.0,0.03360916]
[1758554471390,0.17927654,112920.0,112910.0,0.03360916]
[1758554471523,0.17711654,112920.0,112910.0,0.05441238]
[1758554472591,0.17711654,112920.0,112910.0,0.05132238]
[1758554472741,0.17927654,112920.0,112910.0,0.05132238]
[1758554472950,0.70441514,112920.0,112910.0,0.03360916]
[1758554474022,0.17927654,112920.0,112910.0,0.03360916]
[1758554474214,0.70441514,112920.0,112910.0,0.03360916]
[1758554475235,0.73048514,112920.0,112910.0,0.00670916]
[1758554478754,1.01876514,112920.0,112910.0,0.00670916]
[1758554479189,0.20218654,112920.0,112910.0,0.00880916]
[1758554479399,1.04523127,112920.0,112910.0,0.00670916]
[1758554479602,1.04523127,112920.0,112910.0,0.03150916]
[1758554479603,1.04551127,112920.0,112910.0,0.03150916]
[1758554480139,1.04551127,112920.0,112910.0,0.00670916]
[1758554482105,1.04531127,112920.0,112910.0,0.00670916]
[1758554483654,0.75711127,112920.0,112910.0,0.00670916]
[1758554483854,1.04511127,112920.0,112910.0,0.00670916]
[1758554484487,1.04511127,112920.0,112910.0,0.00470916]
[1758554484680,1.04511127,112920.0,112910.0,0.00070916]
[1758554484953,0.75711127,112920.0,112910.0,0.00070916]
[1758554485543,1.04503127,112920.0,112910.0,0.00070916]
[1758554487040,1.38503127,112920.0,112910.0,0.00070916]
[1758554488218,1.47030094,112920.0,112910.0,0.00070916]
[1758554490237,1.56574094,112920.0,112910.0,0.00070916]
[1758554490362,1.57191682,112920.0,112910.0,0.00070916]
[1758554490573,1.81479272,112920.0,112910.0,0.00070916]
[1758554490995,1.84494462,112920.0,112910.0,0.00070916]
[1758554491744,1.86141266,112920.0,112910.0,0.00070916]
[1758554492742,1.86941266,112920.0,112910.0,0.00070916]
[1758554492919,1.87041266,112920.0,112910.0,0.00070916]
[1758554493121,1.58281266,112920.0,112910.0,0.00070916]
[1758554493365,1.87013266,112920.0,112910.0,0.00070916]
[1758554494540,1.48705266,112920.0,112910.0,0.00070916]
[1758554494739,1.87001266,112920.0,112910.0,0.00070916]
[1758554496944,1.48705266,112920.0,112910.0,0.00070916]
[1758554497119,1.86981266,112920.0,112910.0,0.00070916]
[1758554497563,1.48705266,112920.0,112910.0,0.00070916]
[1758554497916,1.86981266,112920.0,112910.0,0.00070916]
[1758554498393,1.48705266,112920.0,112910.0,0.00070916]
[1758554498587,1.86981266,112920.0,112910.0,0.00070916]
[1758554499035,1.48705266,112920.0,112910.0,0.00070916]
[1758554499766,1.86981266,112920.0,112910.0,0.00070916]
[1758554500003,1.48705266,112920.0,112910.0,0.00070916]
[1758554500453,1.86981485,112920.0,112910.0,0.00070916]
[1758554500680,1.48705485,112920.0,112910.0,0.00070916]
[1758554500907,1.86981485,112920.0,112910.0,0.00070916]
[1758554501393,1.48705485,112920.0,112910.0,0.00070916]
[1758554501842,1.86982825,112920.0,112910.0,0.00070916]
[1758554502204,1.24640943,112920.0,112910.0,0.03052916]
[1758554502408,1.61600524,112920.0,112910.0,0.02732916]
[1758554503254,1.61393524,112920.0,112910.0,0.02732916]
[1758554503591,1.61600524,112920.0,112910.0,0.02732916]
[1758554503792,1.32693524,112920.0,112910.0,0.03052916]
[1758554504006,1.61393524,112920.0,112910.0,0.03052916]
[1758554504177,1.22992799,112920.0,112910.0,0.03052916]
[1758554505020,0.55892074,112920.0,112910.0,0.20766138]
[1758554505276,0.21274267,112920.0,112910.0,0.20766138]
[1758554505486,0.49974267,112920.0,112910.0,0.20766138]
[1758554505686,0.21274267,112920.0,112910.0,0.20766138]
[1758554505886,0.03562613,112920.0,112910.0,0.20766138]
[1758554506085,0.03462613,112920.0,112910.0,0.20766138]
[1758554506295,0.21174267,112920.0,112910.0,0.20766138]
[1758554506836,0.03462613,112920.0,112910.0,0.20766138]
[1758554507144,0.84810866,112930.0,112920.0,0.17711654]
[1758554507389,0.87473208,112930.0,112920.0,0.20293654]
[1758554507940,0.87473208,112930.0,112920.0,0.20193654]
[1758554508147,0.88695191,112930.0,112920.0,0.02982]
[1758554508767,0.88695191,112930.0,112920.0,0.20693654]
[1758554509020,0.88695191,112930.0,112920.0,0.02982]
[1758554509256,0.50694466,112930.0,112920.0,0.02982]
[1758554509443,0.89095191,112930.0,112920.0,0.02982]
[1758554509813,0.89095191,112930.0,112920.0,0.02662]
[1758554510389,0.50694466,112930.0,112920.0,0.02662]
[1758554510741,0.89095191,112930.0,112920.0,0.02662]
[1758554510942,0.17711654,112920.0,112910.0,0.33107837]
[1758554511150,0.56112379,112920.0,112910.0,0.02523916]
[1758554511352,0.56319379,112920.0,112910.0,0.02732916]
[1758554511633,0.56112379,112920.0,112910.0,0.02732916]
[1758554511801,0.56112379,112920.0,112910.0,0.2253746]
[1758554511976,0.87470988,112920.0,112910.0,0.20766138]
[1758554512176,0.87470988,112920.0,112910.0,0.03052916]
[1758554512403,0.87470988,112920.0,112910.0,0.05224238]
[1758554512746,0.87470988,112920.0,112910.0,0.2313746]
[1758554512948,0.49070263,112920.0,112910.0,0.03652916]
[1758554513160,0.49070263,112920.0,112910.0,0.2313746]
[1758554513360,0.87470988,112920.0,112910.0,0.21366138]
[1758554514570,0.87470988,112920.0,112910.0,0.03652916]
[1758554514763,0.87470988,112920.0,112910.0,0.05424238]
[1758554515187,0.87470988,112920.0,112910.0,0.2313746]
[1758554515422,0.87470988,112920.0,112910.0,0.03652916]
[1758554515613,0.87470988,112920.0,112910.0,0.05424238]
[1758554515981,0.87470988,112920.0,112910.0,0.2313746]
[1758554516154,0.87470988,112920.0,112910.0,0.21366138]
[1758554516355,0.58774988,112920.0,112910.0,0.21366138]
[1758554516711,0.20374263,112920.0,112910.0,0.29893105]
[1758554517445,0.58774988,112920.0,112910.0,0.29893105]
[1758554517865,0.41063334,112920.0,112910.0,0.29893105]
[1758554518526,0.20374263,112920.0,112910.0,0.29893105]
[1758554518735,0.58774988,112920.0,112910.0,0.29893105]
[1758554520562,0.59290988,112920.0,112910.0,0.09197883]
[1758554520775,0.61720988,112920.0,112910.0,0.09197883]
[1758554522019,0.61720988,112920.0,112910.0,0.00670916]
[1758554522566,0.61720988,112920.0,112910.0,0.18384138]
[1758554522772,0.61720988,112920.0,112910.0,0.03083916]
[1758554522982,0.61720988,112920.0,112910.0,0.00670916]
[1758554525005,0.23320263,112920.0,112910.0,0.00670916]
[1758554525222,0.61720988,112920.0,112910.0,0.00670916]
[1758554526355,0.58774988,112920.0,112910.0,0.21084138]
[1758554526550,0.87466988,112920.0,112910.0,0.21084138]
[1758554526894,0.58971988,112920.0,112910.0,0.03370916]
[1758554527116,0.99984713,112920.0,112910.0,0.00676655]
[1758554527322,0.61583988,112920.0,112910.0,0.00676655]
[1758554527590,0.99984713,112920.0,112910.0,0.00676655]
[1758554528072,0.61583988,112920.0,112910.0,0.00676655]
[1758554528274,0.90271988,112920.0,112910.0,0.00676655]
[1758554528716,1.09452659,112920.0,112910.0,0.00676655]
[1758554529701,0.78474659,112920.0,112910.0,0.00676655]
[1758554529924,1.09452659,112920.0,112910.0,0.00676655]
[1758554533066,0.80764659,112920.0,112910.0,0.00676655]
[1758554533236,1.09452659,112920.0,112910.0,0.00676655]
[1758554534510,1.72243357,112920.0,112910.0,0.00676655]
[1758554535527,2.70157608,112920.0,112910.0,0.00676655]
[1758554535737,2.70157608,112920.0,112910.0,0.00076655]
[1758554535931,1.83985514,112920.0,112910.0,0.00076655]
[1758554536747,1.55297514,112920.0,112910.0,0.00076655]
[1758554536956,1.93561514,112920.0,112910.0,0.00076655]
[1758554537162,2.79933608,112920.0,112910.0,0.00076655]
[1758554537543,2.79733608,112920.0,112910.0,0.00076655]
[1758554537876,2.80133608,112920.0,112910.0,0.00076655]
[1758554538083,2.80233608,112920.0,112910.0,0.00076655]
[1758554538284,2.41569608,112920.0,112910.0,0.00076655]
[1758554538486,1.93861514,112920.0,112910.0,0.00076655]
[1758554540688,1.84285514,112920.0,112910.0,0.00076655]
[1758554541312,1.93861514,112920.0,112910.0,0.00076655]
[1758554542095,1.55597514,112920.0,112910.0,0.00076655]
[1758554542302,2.80233608,112920.0,112910.0,0.00076655]
[1758554543026,2.41969608,112920.0,112910.0,0.00076655]
[1758554543650,1.93861514,112920.0,112910.0,0.00076655]
[1758554543864,1.55597514,112920.0,112910.0,0.00076655]
[1758554544086,1.84285514,112920.0,112910.0,0.00076655]
[1758554544284,2.41969608,112920.0,112910.0,0.00076655]